fUST/lending_fUST_20250925
["ID","MTS","AMOUNT","RATE_DAILY","PERIOD"]
[387598087,1758781079657,-480.0,0.00019335,2]
[387598088,1758781079686,-542.82,0.00019335,2]
[387598089,1758781079713,-480.0,0.00019335,2]
[387598090,1758781079739,-491.82694816,0.00019335,2]
[387598091,1758781079893,-485.78060634,0.00019335,2]
[387598092,1758781079920,-488.36516026,0.00019335,2]
[387598093,1758781079949,-480.0,0.00019335,2]
[387598094,1758781079977,-480.0,0.00019335,2]
[387598095,1758781080008,-480.0,0.00019335,2]
[387598096,1758781080136,-465.71,0.00019335,2]
[387598097,1758781086105,-276.06107382,0.0001935,2]
[387598098,1758781086138,-499.09272893,0.0001935,2]
[387598099,1758781086166,-480.0,0.0001935,2]
[387598100,1758781086196,-480.0,0.0001935,2]
[387598101,1758781086226,-482.90157627,0.0001935,2]
[387598102,1758781086255,-480.0,0.0001935,2]
[387598103,1758781086285,-480.0,0.0001935,2]
[387598104,1758781086320,-480.0,0.0001935,2]
[387598105,1758781086357,-480.0,0.0001935,2]
[387598106,1758781086397,-480.0,0.0001935,2]
[387598107,1758781104128,-500.0,0.0001935,2]
[387598108,1758781104158,-500.0,0.0001935,2]
[387598109,1758781104196,-500.0,0.0001935,2]
[387598110,1758781104225,-500.0,0.0001935,2]
[387598111,1758781104262,-500.0,0.0001935,2]
[387598112,1758781104293,-500.0,0.0001935,2]
[387598113,1758781104332,-500.0,0.0001935,2]
[387598114,1758781104363,-500.0,0.0001935,2]
[387598115,1758781104392,-500.0,0.0001935,2]
[387598116,1758781104422,-500.0,0.0001935,2]
[387598117,1758781104563,-500.0,0.0001935,2]
[387598118,1758781104599,-500.0,0.0001935,2]
[387598119,1758781104628,-500.43516638,0.0001935,2]
[387598120,1758781104657,-500.0,0.0001935,2]
[387598121,1758781104686,-500.0,0.0001935,2]
[387598122,1758781104713,-572.99482993,0.0001935,2]
[387598123,1758781104743,-500.0,0.0001935,2]
[387598124,1758781104772,-544.86350991,0.0001935,2]
[387598125,1758781104801,-500.0,0.0001935,2]
[387598126,1758781104833,-263.42298756,0.0001935,2]
[387598127,1758781105079,-236.57701244,0.0001935,2]
[387598128,1758781105108,-500.0,0.0001935,2]
[387598129,1758781105140,-500.0,0.0001935,2]
[387598130,1758781105169,-500.0,0.0001935,2]
[387598131,1758781105198,-500.0,0.0001935,2]
[387598132,1758781105231,-500.0,0.0001935,2]
[387598133,1758781105259,-500.0,0.0001935,2]
[387598134,1758781105290,-500.0,0.0001935,2]
[387598135,1758781105326,-500.0,0.0001935,2]
[387598136,1758781105355,-500.0,0.0001935,2]
[387598137,1758781105383,-26.85597512,0.0001935,2]
[387598138,1758781105498,-473.14402488,0.0001935,2]
[387598139,1758781105527,-500.0,0.0001935,2]
[387598140,1758781105562,-500.0,0.0001935,2]
[387598141,1758781105594,-500.0,0.0001935,2]
[387598142,1758781105632,-500.0,0.0001935,2]
[387598143,1758781105661,-500.0,0.0001935,2]
[387598144,1758781105690,-500.0,0.0001935,2]
[387598145,1758781105719,-500.0,0.0001935,2]
[387598146,1758781105747,-500.0,0.0001935,2]
[387598147,1758781105776,-500.0,0.0001935,2]
[387598148,1758781105974,-500.0,0.0001935,2]
[387598149,1758781106003,-500.0,0.0001935,2]
[387598150,1758781106033,-500.0,0.0001935,2]
[387598151,1758781106061,-500.0,0.0001935,2]
[387598152,1758781106092,-500.0,0.0001935,2]
[387598153,1758781106122,-500.0,0.0001935,2]
[387598154,1758781106151,-500.0,0.0001935,2]
[387598155,1758781106181,-500.0,0.0001935,2]
[387598156,1758781106212,-500.0,0.0001935,2]
[387598157,1758781106241,-500.0,0.0001935,2]
[387598158,1758781106422,-500.0,0.0001935,2]
[387598159,1758781106451,-500.0,0.0001935,2]
[387598160,1758781106480,-642.97554911,0.0001935,2]
[387598161,1758781106509,-500.0,0.0001935,2]
[387598162,1758781106539,-500.0,0.0001935,2]
[387598163,1758781106575,-500.0,0.0001935,2]
[387598164,1758781106605,-500.0,0.0001935,2]
[387598165,1758781106635,-500.0,0.0001935,2]
[387598166,1758781106664,-500.0,0.0001935,2]
[387598167,1758781106693,-214.05890178,0.0001935,2]
[387598168,1758781106744,-285.94109822,0.0001935,2]
[387598169,1758781106775,-500.0,0.0001935,2]
[387598170,1758781106804,-250.0,0.0001935,2]
[387598207,1758781670503,10000.01,0.00018,2]
[387598208,1758781670527,4744.8890519,0.00018,2]
[387598209,1758781674498,5255.1209481,0.00018,2]
[387598210,1758781674521,3822.17125339,0.00018,2]
[387598213,1758781696691,4564.07376144,0.00018,2]
[387598214,1758781699970,-5000.0,0.00019178,2]
[387598215,1758781709880,-982.80692831,0.00019273,2]
[387598216,1758781709913,-967.06562472,0.00019273,2]
[387598262,1758781831790,-855.3,0.0001933,2]
[387598264,1758781831800,-150.60750147,0.0001933,2]
[387598509,1758781837755,-329.39249853,0.0001933,2]
[387598511,1758781837765,-496.53,0.0001933,2]
[387598513,1758781837774,-480.0,0.00019332,2]
[387598515,1758781837784,-480.0,0.00019333,2]
[387598517,1758781837793,-480.0,0.00019333,2]
[387598520,1758781837802,-196.81,0.00019342,3]
[387598523,1758781837812,-33.46125779,0.00019342,3]
[387598526,1758781837824,-556.96874221,0.00019342,3]
[387598529,1758781837832,-480.0,0.00019349,2]
[387598532,1758781837841,-294.45288335,0.00019349,2]
[387598535,1758781837853,-185.54711665,0.00019349,2]
[387598538,1758781837862,-484.22905496,0.00019349,2]
[387598540,1758781837871,-441.98766341,0.00019349,2]
[387598542,1758781837880,-480.0,0.00019349,2]
[387598544,1758781837890,-484.13992915,0.00019349,2]
[387598546,1758781837899,-482.83533099,0.00019349,2]
[387598548,1758781837908,-483.3111458,0.00019349,2]
[387598550,1758781837917,-514.74525312,0.00019349,2]
[387598552,1758781837927,-435.06126625,0.00019349,2]
[387598554,1758781837938,-34.37521218,0.00019349,2]
[387598556,1758781837947,-480.0,0.00019349,2]
[387598558,1758781837958,-490.4575425,0.00019349,2]
[387598560,1758781837967,-375.31579069,0.00019349,2]
[387598562,1758781837979,-104.68420931,0.00019349,2]
[387598564,1758781837988,-473.75054532,0.00019349,2]
[387598566,1758781837998,-341.56524537,0.00019349,2]
[387598569,1758781838009,-138.43475463,0.00019349,2]
[387598570,1758781838018,-480.0,0.00019349,2]
[387598572,1758781838027,-362.3463977,0.00019349,2]
[387598575,1758781838039,-142.46432954,0.00019349,2]
[387598577,1758781838048,-480.0,0.00019349,2]
[387598579,1758781838058,-480.0,0.00019349,2]
[387598581,1758781838067,-484.13091357,0.00019349,2]
[387598583,1758781838077,-482.92753675,0.00019349,2]
[387598585,1758781838086,-405.71756841,0.00019349,2]
[387598587,1758781838095,-402.61848628,0.00019349,2]
[387598589,1758781838105,-480.0,0.00019349,2]
[387598591,1758781838114,-480.0,0.00019349,2]
[387598593,1758781838123,-10482.5625403,0.0001935,2]
[387598595,1758781838133,-480.0,0.0001935,2]
[387598597,1758781838142,-163.1,0.00019351,2]
[387598599,1758781838152,-487.29431549,0.00019351,2]
[387598601,1758781838161,-1517.11,0.00019351,2]
[387598603,1758781838170,-480.0,0.00019351,2]
[387598604,1758781838179,-480.0,0.00019351,2]
[387598606,1758781838188,-480.0,0.00019351,2]
[387598609,1758781838198,-480.0,0.00019351,2]
[387598610,1758781838208,-185.52765461,0.00019351,2]
[387598612,1758781838218,-480.0,0.00019351,2]
[387598614,1758781838227,-480.0,0.00019351,2]
[387598616,1758781838237,-480.0,0.00019351,2]
[387598618,1758781838246,-480.0,0.00019351,2]
[387598620,1758781838255,-480.0,0.00019351,2]
[387598622,1758781838265,-480.0,0.00019351,2]
[387598624,1758781838274,-230.33275888,0.00019351,2]
[387598626,1758781838283,-272.07056657,0.00019351,2]
[387598628,1758781838293,-500.0,0.00019351,2]
[387598630,1758781838308,-500.0,0.00019351,2]
[387598632,1758781838317,-500.0,0.00019351,2]
[387598634,1758781838327,-500.0,0.00019351,2]
[387598636,1758781838339,-263.46793252,0.00019351,2]
[387598638,1758781838348,-370000.0,0.00019352,2]
[387598641,1758781838357,-500.77160438,0.00019373,2]
[387598642,1758781838366,-500.0,0.00019373,2]
[387598644,1758781838376,-500.0,0.00019373,2]
[387598646,1758781838386,-500.0,0.00019373,2]
[387598648,1758781838395,-506.92875789,0.00019373,2]
[387598650,1758781838405,-500.0,0.00019373,2]
[387598653,1758781838414,-855.3,0.00019604,2]
[387598655,1758781838423,-480.0,0.00019604,2]
[387598657,1758781838433,-480.0,0.00019606,2]
[387598658,1758781838442,-480.0,0.00019607,2]
[387598661,1758781838452,-480.0,0.00019607,2]
[387598662,1758781838462,-480.0,0.00019623,2]
[387598665,1758781838471,-480.0,0.00019623,2]
[387598666,1758781838481,-480.0,0.00019623,2]
[387598668,1758781838490,-492.94539787,0.00019623,2]
[387598670,1758781838500,-480.0,0.00019623,2]
[387598672,1758781838509,-480.0,0.00019623,2]
[387598675,1758781838520,-483.11243497,0.00019623,2]
[387598677,1758781838529,-483.84203618,0.00019623,2]
[387598678,1758781838538,-480.0,0.00019624,2]
[387598681,1758781838548,-163.1,0.00019625,2]
[387598682,1758781838558,-1517.11,0.00019625,2]
[387598685,1758781838567,-480.0,0.00019625,2]
[387598687,1758781838577,-480.0,0.00019625,2]
[387598689,1758781838586,-481.6497494,0.00019625,2]
[387598690,1758781838596,-454.51955245,0.00019625,2]
[387598693,1758781838606,-480.0,0.00019625,2]
[387598694,1758781838615,-480.0,0.00019625,2]
[387598696,1758781838624,-480.0,0.00019625,2]
[387598698,1758781838634,-480.0,0.00019625,2]
[387598700,1758781838644,-480.0,0.00019625,2]
[387598702,1758781838653,-855.3,0.00019878,2]
[387598704,1758781838662,-480.0,0.00019878,2]
[387598706,1758781838671,-480.0,0.0001988,2]
[387598709,1758781838681,-186.82,0.00019881,2]
[387598710,1758781838690,-480.0,0.00019897,2]
[387598713,1758781838702,-480.0,0.00019897,2]
[387598715,1758781838711,-480.0,0.00019897,2]
[387598717,1758781838720,-480.0,0.00019897,2]
[387598718,1758781838729,-480.0,0.00019897,2]
[387598720,1758781838739,-480.0,0.00019898,2]
[387598722,1758781838749,-163.11726284,0.00019899,2]
[387598724,1758781838758,-1517.11,0.00019899,2]
[387598726,1758781838768,-480.0,0.00019899,2]
[387598728,1758781838777,-480.0,0.00019899,2]
[387598730,1758781838786,-480.0,0.00019899,2]
[387598733,1758781838796,-480.0,0.00019899,2]
[387598734,1758781838805,-480.0,0.00019899,2]
[387598736,1758781838815,-450.71506117,0.000199,2]
[387598739,1758781838825,-394.58552777,0.00019921,2]
[387598741,1758781838834,-502.07768601,0.00019973,2]
[387598742,1758781838844,-100000.0,0.0001999,2]
[387598745,1758781838854,-160.0,0.0002,3]
[387598747,1758781838863,-855.3,0.00020152,2]
[387598749,1758781838873,-406.66,0.00020152,2]
[387598750,1758781838883,-480.0,0.00020154,2]
[387598752,1758781838893,-480.0,0.00020171,2]
[387598754,1758781838904,-480.0,0.00020171,2]
[387598756,1758781838913,-480.0,0.00020171,2]
[387598758,1758781838923,-480.0,0.00020171,2]
[387598760,1758781838933,-480.0,0.00020171,2]
[387598762,1758781838942,-1517.11,0.00020173,2]
[387598764,1758781838954,-480.0,0.00020173,2]
[387598766,1758781838963,-480.0,0.00020173,2]
[387598768,1758781838978,-480.0,0.00020173,2]
[387598770,1758781838987,-480.0,0.00020173,2]
[387598772,1758781838997,-480.0,0.00020173,2]
[387598774,1758781839006,-855.3,0.00020426,2]
[387598776,1758781839016,-480.0,0.00020428,2]
[387598778,1758781839026,-480.0,0.00020445,2]
[387598780,1758781839035,-480.0,0.00020445,2]
[387598782,1758781839045,-480.0,0.00020445,2]
[387598784,1758781839055,-480.0,0.00020445,2]
[387598786,1758781839064,-480.0,0.00020445,2]
[387598788,1758781839074,-1517.11,0.00020447,2]
[387598790,1758781839084,-480.0,0.00020447,2]
[387598792,1758781839093,-480.0,0.00020447,2]
[387598794,1758781839103,-480.0,0.00020447,2]
[387598796,1758781839112,-480.0,0.00020447,2]
[387598798,1758781839122,-480.0,0.00020447,2]
[387598800,1758781839132,-967.06562469,0.00020655,2]
[387598802,1758781839141,-855.3,0.000207,2]
[387598804,1758781839151,-480.0,0.00020702,2]
[387598807,1758781839160,-393.62,0.00020712,3]
[387598810,1758781839171,-480.0,0.00020719,2]
[387598812,1758781839180,-480.0,0.00020719,2]
[387598813,1758781839189,-339.2,0.00020719,2]
[387598814,1758781839200,-480.0,0.00020719,2]
[387598815,1758781839209,-1517.11,0.00020721,2]
[387598816,1758781839218,-480.0,0.00020721,2]
[387598817,1758781839228,-480.0,0.00020721,2]
[387598818,1758781839237,-507.49916118,0.00020721,2]
[387598830,1758781839340,-480.0,0.00020721,2]
[387598832,1758781839350,-530.55,0.00020721,2]
[387598834,1758781839359,-150.0,0.00020792,2]
[387598836,1758781839368,-406.79269329,0.00020822,2]
[387598838,1758781839378,-238.57457338,0.00020822,2]
[387598840,1758781839388,-160.0,0.00020872,2]
[387598842,1758781839397,-450.71506099,0.00020972,2]
[387598844,1758781839407,-855.3,0.00020974,2]
[387598846,1758781839418,-480.0,0.00020976,2]
[387598848,1758781839429,-480.0,0.00020993,2]
[387598850,1758781839442,-385.26074063,0.00020993,2]
[387598853,1758781839453,-480.0,0.00020993,2]
[387598855,1758781839462,-1517.11,0.00020995,2]
[387598857,1758781839472,-480.0,0.00020995,2]
[387598859,1758781839482,-480.0,0.00020995,2]
[387598861,1758781839492,-480.0,0.00020995,2]
[387598863,1758781839501,-195.915342,0.00021,5]
[387598865,1758781839511,-688.67808718,0.00021,10]
[387598867,1758781839520,-151.89653185,0.00021,2]
[387598869,1758781839530,-186.1249531,0.00021047,2]
[387598871,1758781839539,-855.3,0.00021248,2]
[387598873,1758781839548,-311.43916854,0.0002125,2]
[387598875,1758781839557,-480.0,0.00021267,2]
[387598877,1758781839566,-480.0,0.00021267,2]
[387598879,1758781839575,-1517.11,0.00021269,2]
[387598881,1758781839585,-480.0,0.00021269,2]
[387598883,1758781839594,-480.0,0.00021269,2]
[387598885,1758781839603,-480.0,0.00021269,2]
[387598887,1758781839613,-501.9394804,0.00021383,2]
[387598889,1758781839622,-500.0,0.00021383,2]
[387598891,1758781839632,-521.83973664,0.00021383,2]
[387598893,1758781839642,-500.0,0.00021383,2]
[387598895,1758781839652,-500.0,0.00021383,2]
[387598897,1758781839661,-260.0,0.0002142,2]
[387598899,1758781839670,-855.3,0.00021522,2]
[387598901,1758781839679,-480.0,0.00021541,2]
[387598903,1758781839688,-480.0,0.00021541,2]
[387598905,1758781839697,-1517.11,0.00021543,2]
[387598907,1758781839708,-480.0,0.00021543,2]
[387598909,1758781839717,-480.0,0.00021543,2]
[387598911,1758781839726,-480.0,0.00021543,2]
[387598913,1758781839736,-168.63354543,0.00021546,2]
[387598915,1758781839749,-855.3,0.00021796,2]
[387598917,1758781839758,-2338.9758583,0.00021801,2]
[387598919,1758781839768,-480.0,0.00021815,2]
[387598921,1758781839777,-480.0,0.00021815,2]
[387598923,1758781839787,-1517.11,0.00021817,2]
[387598925,1758781839796,-480.0,0.00021817,2]
[387598927,1758781839806,-480.0,0.00021817,2]
[387598929,1758781839816,-480.0,0.00021817,2]
[387598931,1758781839826,-417.15472785,0.00021833,2]
[387598933,1758781839836,-500.0,0.00021931,2]
[387598935,1758781839845,-543.74098733,0.00021931,2]
[387598937,1758781839854,-360.0,0.00021968,2]
[387598939,1758781839864,-967.06562469,0.00022037,2]
[387598941,1758781839873,-450.71506099,0.00022044,2]
[387598943,1758781839882,-855.3,0.0002207,2]
[387598945,1758781839891,-480.0,0.00022089,2]
[387598947,1758781839901,-480.0,0.00022089,2]
[387598949,1758781839911,-1517.11,0.00022091,2]
[387598952,1758781839920,-621.30699316,0.00022091,2]
[387598953,1758781839929,-480.0,0.00022091,2]
[387598956,1758781839939,-480.0,0.00022091,2]
[387598957,1758781839948,-1149.79,0.000221,2]
[387598959,1758781839958,-159.6538646,0.00022137,6]
[387598961,1758781839967,-855.3,0.00022344,2]
[387598964,1758781839976,-521.8960578,0.00022347,2]
[387598966,1758781839988,-480.0,0.00022363,2]
[387598968,1758781839998,-480.0,0.00022363,2]
[387598970,1758781840007,-1517.11,0.00022365,2]
[387598972,1758781840017,-480.0,0.00022365,2]
[387598974,1758781840026,-480.0,0.00022365,2]
[387598976,1758781840035,-855.3,0.00022618,2]
[387598978,1758781840044,-480.0,0.00022637,2]
[387598980,1758781840053,-480.0,0.00022637,2]
[387598982,1758781840063,-1517.11,0.00022639,2]
[387598984,1758781840072,-480.0,0.00022639,2]
[387598986,1758781840081,-480.0,0.00022639,2]
[387598988,1758781840090,-259.13,0.00022683,2]
[387598990,1758781840099,-5000.0,0.00022695,2]
[387598992,1758781840108,-855.3,0.00022892,2]
[387598994,1758781840118,-599.35053742,0.00022911,2]
[387598996,1758781840127,-480.0,0.00022911,2]
[387598998,1758781840136,-1517.11,0.00022913,2]
[387599000,1758781840146,-480.0,0.00022913,2]
[387599002,1758781840155,-480.0,0.00022913,2]
[387599004,1758781840165,-271.72458938,0.0002298,2]
[387599006,1758781840175,-60682.14674846,0.00023,2]
[387599008,1758781840184,-1999.999999,0.00023,2]
[387599010,1758781840194,-450.71506099,0.00023116,2]
[387599012,1758781840204,-271.72458938,0.00023118,2]
[387599014,1758781840214,-271.72458938,0.00023118,2]
[387599016,1758781840223,-271.72458938,0.00023118,2]
[387599018,1758781840233,-855.3,0.00023166,2]
[387599021,1758781840242,-480.0,0.00023185,2]
[387599022,1758781840251,-1517.11,0.00023187,2]
[387599025,1758781840260,-260.44,0.00023187,2]
[387599027,1758781840269,-480.0,0.00023187,2]
[387599029,1758781840278,-271.72458938,0.00023256,2]
[387599031,1758781840287,-271.72458938,0.00023256,2]
[387599032,1758781840300,-271.72458938,0.00023256,2]
[387599034,1758781840309,-762.36,0.00023287,2]
[387599036,1758781840318,-271.72458938,0.00023394,7]
[387599038,1758781840327,-271.72458938,0.00023394,7]
[387599040,1758781840336,-967.06562469,0.00023418,2]
[387599042,1758781840346,-855.3,0.0002344,2]
[387599044,1758781840356,-480.0,0.00023459,2]
[387599046,1758781840365,-1517.11,0.00023461,2]
[387599048,1758781840376,-480.0,0.00023461,2]
[387599050,1758781840385,-500.0,0.00023518,2]
[387599052,1758781840394,-271.72458938,0.00023532,7]
[387599055,1758781840403,-271.72458938,0.00023532,7]
[387599057,1758781840413,-271.72458938,0.00023532,7]
[387599058,1758781840422,-271.72458938,0.00023532,7]
[387599061,1758781840431,-271.72458938,0.00023671,7]
[387599062,1758781840440,-3685.76385583,0.000237,14]
[387599064,1758781840450,-855.3,0.00023713,2]
[387599065,1758781840460,-393.92226728,0.00023733,2]
[387599067,1758781840469,-1517.11,0.00023735,2]
[387599069,1758781840478,-480.0,0.00023735,2]
[387599071,1758781840488,-500.0,0.00023785,2]
[387599074,1758781840499,-517.70829805,0.00023931,2]
[387599076,1758781840508,-855.3,0.00023987,2]
[387599077,1758781840517,-661.44,0.00024,14]
[387599079,1758781840527,-1517.11,0.00024009,2]
[387599081,1758781840537,-480.0,0.00024009,2]
[387599083,1758781840546,-652.56,0.00024069,5]
[387599085,1758781840555,-450.71506099,0.00024187,2]
[387599087,1758781840565,-855.3,0.00024261,2]
[387599090,1758781840574,-1517.11,0.00024283,2]
[387599091,1758781840584,-249.14036655,0.00024283,2]
[387599093,1758781840593,-505.52315147,0.0002435,2]
[387599095,1758781840603,-200.4500569,0.00024457,2]
[387599097,1758781840612,-1000.0,0.00024457,2]
[387599100,1758781840621,-166.28049624,0.00024457,2]
[387599101,1758781840631,-1000.0,0.00024457,2]
[387599103,1758781840641,-1044.82418463,0.00024457,2]
[387599106,1758781840651,-384.77737366,0.00024457,2]
[387599107,1758781840660,-350.0,0.00024457,2]
[387599110,1758781840669,-350.0,0.00024457,2]
[387599112,1758781840679,-350.0,0.00024457,2]
[387599113,1758781840688,-460.33648398,0.00024457,2]
[387599115,1758781840697,-168.0,0.00024467,2]
[387599117,1758781840709,-168.0,0.00024525,2]
[387599119,1758781840719,-855.3,0.00024535,2]
[387599121,1758781840728,-1517.11,0.00024557,2]
[387599123,1758781840738,-388.7,0.00024573,2]
[387599125,1758781840747,-967.06562469,0.000248,2]
[387599127,1758781840757,-413.46799136,0.000248,2]
[387599129,1758781840766,-855.3,0.00024809,2]
[387599131,1758781840775,-1517.11,0.00024831,2]
[387599133,1758781840785,-168.0,0.0002484,2]
[387599135,1758781840794,-500.0,0.00024873,2]
[387599137,1758781840803,-500.0,0.00024873,2]
[387599139,1758781840813,-500.0,0.00024873,2]
[387599141,1758781840822,-500.0,0.00024873,2]
[387599143,1758781840831,-500.0,0.00024873,2]
[387599145,1758781840841,-500.0,0.00024873,2]
[387599147,1758781840850,-500.0,0.00024873,2]
[387599149,1758781840859,-500.0,0.00024873,2]
[387599151,1758781840868,-168.0,0.00024873,2]
[387599153,1758781840879,-310.10099352,0.0002489,2]
[387599155,1758781840888,-168.0,0.00024892,2]
[387599157,1758781840898,-1007.60962386,0.000249,2]
[387599159,1758781840907,-4030.43849544,0.000249,2]
[387599161,1758781840917,-496495.55224183,0.000249,2]
[387599164,1758781840935,-267.183561,0.000249,2]
[387599352,1758781842716,-102.366949,0.000249,2]
[387599354,1758781842728,-4524.69975617,0.000249,2]
[387599356,1758781842738,-731.02907576,0.000249,2]
[387599358,1758781842747,-151.0,0.000249,7]
[387599360,1758781842757,-151.0,0.000249,7]
[387599362,1758781842766,-151.0,0.000249,7]
[387599364,1758781842776,-151.0,0.000249,7]
[387599366,1758781842786,-151.0,0.000249,7]
[387599368,1758781842796,-151.0,0.000249,7]
[387599370,1758781842806,-151.0,0.000249,7]
[387599372,1758781842815,-151.0,0.000249,7]
[387599374,1758781842824,-151.0,0.000249,7]
[387599376,1758781842833,-151.0,0.000249,7]
[387599378,1758781842843,-151.0,0.000249,7]
[387599380,1758781842853,-151.0,0.000249,7]
[387599382,1758781842862,-168.0,0.00025036,2]
[387599384,1758781842872,-855.3,0.00025083,2]
[387599386,1758781842881,-168.0,0.00025095,2]
[387599388,1758781842891,-1517.11,0.00025105,2]
[387599390,1758781842901,-168.0,0.00025166,2]
[387599392,1758781842910,-762.36,0.00025205,4]
[387599394,1758781842920,-151.0,0.00025206,2]
[387599396,1758781842930,-151.0,0.00025206,2]
[387599399,1758781842940,-500.0,0.00025206,2]
[387599401,1758781842951,-301.78350024,0.00025206,2]
[387599402,1758781842961,-153.52042676,0.00025206,2]
[387599404,1758781842970,-151.0,0.00025206,2]
[387599407,1758781842980,-151.95306677,0.00025206,2]
[387599408,1758781842989,-151.0,0.00025206,2]
[387599410,1758781842999,-450.71506099,0.00025259,3]
[387599412,1758781843008,-179.62279214,0.00025334,2]
[387599414,1758781843018,-855.3,0.00025357,2]
[387599416,1758781843027,-1517.11,0.00025379,2]
[387599419,1758781843036,-1149.79,0.000254,2]
[387599421,1758781843046,-1000.0,0.00025421,2]
[387599423,1758781843056,-507.45578238,0.00025421,2]
[387599425,1758781843065,-1004.91921847,0.00025421,2]
[387599426,1758781843075,-151.0,0.0002548,2]
[387599429,1758781843084,-151.0,0.0002548,2]
[387599431,1758781843094,-500.0,0.0002548,2]
[387599433,1758781843103,-154.67959179,0.0002548,2]
[387599435,1758781843114,-168.0,0.00025558,2]
[387599437,1758781843123,-855.32,0.00025631,2]
[387599438,1758781843132,-1517.24091451,0.00025653,2]
[387599440,1758781843141,-168.0,0.00025744,2]
[387599442,1758781843151,-173.69335917,0.00025754,2]
[387599444,1758781843163,-500.0,0.00025754,2]
[387599446,1758781843172,-978.0,0.00025891,2]
[387599448,1758781843181,-635.0,0.00025891,2]
[387599450,1758781843190,-2160.0,0.00025891,2]
[387599452,1758781843199,-417.975,0.00025891,2]
[387599454,1758781843209,-1500.0,0.00025968,2]
[387599456,1758781843218,-1820.04896854,0.00026,30]
[387599458,1758781843227,-500.0,0.00026028,2]
[387599460,1758781843236,-500.0,0.00026302,2]
[387599462,1758781843246,-450.71506099,0.00026331,5]
[387599464,1758781843255,-168.0,0.00026423,2]
[387599466,1758781843264,-518.27,0.00026464,2]
[387599468,1758781843273,-168.0,0.00026504,2]
[387599470,1758781843283,-500.0,0.00026516,2]
[387599472,1758781843292,-168.0,0.00026525,2]
[387599474,1758781843305,-500.0,0.00026576,2]
[387599476,1758781843314,-1007.27,0.000268,20]
[387599478,1758781843324,-500.0,0.0002685,2]
[387599480,1758781843333,-5000.0,0.00027028,3]
[387599482,1758781843343,-762.36,0.00027123,6]
[387599484,1758781843352,-500.0,0.00027124,2]
[387599485,1758781843362,-150.0,0.00027397,5]
[387599486,1758781843372,-500.0,0.00027398,2]
[387599487,1758781843382,-450.71506099,0.00027403,7]
[387599488,1758781843392,-500.0,0.00027672,2]
[387599489,1758781843401,-250.0,0.00027945,5]
[387599490,1758781843410,-500.0,0.00027946,2]
[387599491,1758781843420,-199.0,0.00028219,14]
[387599492,1758781843429,-500.0,0.0002822,2]
[387599493,1758781843438,-647.83,0.00028354,2]
[387599494,1758781843446,-160.0,0.00028442,2]
[387599495,1758781843458,-233.66602051,0.00028442,2]
[387599496,1758781843467,-160.0,0.00028442,2]
[387599497,1758781843475,-160.0,0.00028442,2]
[387599498,1758781843485,-450.71506099,0.00028475,9]
[387599499,1758781843494,-350.0,0.00028493,5]
[387599501,1758781843503,-500.0,0.00028494,2]
[387599502,1758781843513,-500.0,0.00028768,2]
[387599504,1758781843522,-410.0,0.00028891,2]